[Event "Titled Tuesday Blitz April 26 Late 2022"]
[White "Paravyan, David"]
[Black "Lashkin, Jegor"]
[WhiteFideId "4194985"]
[BlackFideId "13907808"]
[WhiteElo "2569"]
[BlackElo "2368"]
[Result "1-0"]
[Round "09"]
[TimeControl "180+1"]
[Date "2022.04.26"]
[WhiteClock "0:00:07"]
[BlackClock "0:00:03"]

1. e4 {[%clk 0:02:58]}  c5 {[%clk 0:02:59]} 2. Nf3 {[%clk 0:02:59]}  d6 {[%clk 0:03:00]} 3. d4 {[%clk 0:02:59]}  cxd4 {[%clk 0:03:01]} 4. Nxd4 {[%clk 0:03:00]}  Nf6 {[%clk 0:03:01]} 5. Nc3 {[%clk 0:03:01]}  a6 {[%clk 0:03:02]} 6. Bg5 {[%clk 0:03:01]}  e6 {[%clk 0:03:02]} 7. f4 {[%clk 0:03:02]}  Qb6 {[%clk 0:03:03]} 8. Qd2 {[%clk 0:03:02]}  Qxb2 {[%clk 0:03:03]} 9. Rb1 {[%clk 0:03:01]}  Qa3 {[%clk 0:03:04]} 10. f5 {[%clk 0:03:01]}  Nc6 {[%clk 0:03:04]} 11. fxe6 {[%clk 0:02:57]}  Bxe6 {[%clk 0:03:04]} 12. Rxb7 {[%clk 0:02:57]}  Nxd4 {[%clk 0:03:05]} 13. Qxd4 {[%clk 0:02:58]}  Be7 {[%clk 0:03:06]} 14. Bc4 {[%clk 0:02:49]}  Rc8 {[%clk 0:03:05]} 15. Rb3 {[%clk 0:01:06]}  Qa5 {[%clk 0:02:26]} 16. Bxe6 {[%clk 0:01:04]}  fxe6 {[%clk 0:02:27]} 17. Bd2 {[%clk 0:01:04]}  Qh5 {[%clk 0:02:13]} 18. Rb7 {[%clk 0:01:02]}  Qc5 {[%clk 0:02:07]} 19. Qxc5 {[%clk 0:01:00]}  Rxc5 {[%clk 0:02:07]} 20. Ke2 {[%clk 0:01:01]}  Kf7 {[%clk 0:02:01]} 21. Rhb1 {[%clk 0:00:49]}  Rhc8 {[%clk 0:02:00]} 22. R1b3 {[%clk 0:00:50]}  Ng4 {[%clk 0:01:41]} 23. Ra7 {[%clk 0:00:47]}  Ne5 {[%clk 0:01:34]} 24. Rbb7 {[%clk 0:00:37]}  Nc6 {[%clk 0:01:34]} 25. Rxa6 {[%clk 0:00:36]}  Ke8 {[%clk 0:01:14]} 26. Kd1 {[%clk 0:00:33]}  Nd8 {[%clk 0:00:52]} 27. Rb3 {[%clk 0:00:29]}  Bf6 {[%clk 0:00:48]} 28. Nb5 {[%clk 0:00:28]}  Nf7 {[%clk 0:00:43]} 29. Nxd6+ {[%clk 0:00:27]}  Nxd6 {[%clk 0:00:43]} 30. Rxd6 {[%clk 0:00:28]}  Rxc2 {[%clk 0:00:33]} 31. e5 {[%clk 0:00:25]}  Be7 {[%clk 0:00:27]} 32. Rxe6 {[%clk 0:00:12]}  Kf7 {[%clk 0:00:14]} 33. Ra6 {[%clk 0:00:11]}  R2c7 {[%clk 0:00:10]} 34. e6+ {[%clk 0:00:12]}  Kg6 {[%clk 0:00:10]} 35. Rg3+ {[%clk 0:00:11]}  Kf6 {[%clk 0:00:08]} 36. Rf3+ {[%clk 0:00:09]}  Kg6 {[%clk 0:00:08]} 37. Ra4 {[%clk 0:00:10]}  h5 {[%clk 0:00:07]} 38. Rf7 {[%clk 0:00:08]}  Bf6 {[%clk 0:00:05]} 39. Rxc7 {[%clk 0:00:07]}  Rxc7 {[%clk 0:00:06]} 40. Re4 {[%clk 0:00:06]}  Kf5 {[%clk 0:00:05]} 41. Re3 {[%clk 0:00:06]}  Ra7 {[%clk 0:00:06]} 42. Bb4 {[%clk 0:00:05]}  Be7 {[%clk 0:00:02]} 43. Bxe7 {[%clk 0:00:05]}  Rxe7 {[%clk 0:00:03]} 44. Ke1 {[%clk 0:00:05]}  g5 {[%clk 0:00:03]} 45. h3 {[%clk 0:00:05]}  Kf4 {[%clk 0:00:02]} 46. Kf2 {[%clk 0:00:06]}  Kf5 {[%clk 0:00:02]} 47. Re2 {[%clk 0:00:06]}  Kf6 {[%clk 0:00:02]} 48. g4 {[%clk 0:00:06]}  hxg4 {[%clk 0:00:02]} 49. hxg4 {[%clk 0:00:07]}  Kg6 {[%clk 0:00:02]} 50. Kg2 {[%clk 0:00:07]}  Kf6 {[%clk 0:00:03]} 51. a4 {[%clk 0:00:08]}  Kg6 {[%clk 0:00:03]} 52. a5 {[%clk 0:00:07]}  Kf6 {[%clk 0:00:04]} 53. a6 {[%clk 0:00:07]}  Kg6 {[%clk 0:00:04]} 54. a7 {[%clk 0:00:06]}  Rxa7 {[%clk 0:00:03]} 55. e7 {[%clk 0:00:07]} 1-0


[Site "https://www.chess.com"]

[Event "Titled Tuesday Blitz April 26 Late 2022"]
[White "Pesotskiy, Mikhail"]
[Black "Ivanisevic, Ivan"]
[WhiteFideId "34164453"]
[BlackFideId "912417"]
[WhiteElo "2010"]
[BlackElo "2495"]
[Result "0-1"]
[Round "09"]
[TimeControl "180+1"]
[Date "2022.04.26"]
[WhiteClock "0:00:59"]
[BlackClock "0:02:25"]

1. d4 {[%clk 0:03:00]}  Nf6 {[%clk 0:02:59]} 2. c4 {[%clk 0:03:01]}  g6 {[%clk 0:03:00]} 3. Nc3 {[%clk 0:03:01]}  Bg7 {[%clk 0:03:00]} 4. e4 {[%clk 0:03:02]}  d6 {[%clk 0:03:00]} 5. f3 {[%clk 0:03:02]}  a6 {[%clk 0:02:57]} 6. Be3 {[%clk 0:03:03]}  Nc6 {[%clk 0:02:57]} 7. Qd2 {[%clk 0:02:59]}  Rb8 {[%clk 0:02:58]} 8. Bd3 {[%clk 0:02:54]}  e5 {[%clk 0:02:49]} 9. d5 {[%clk 0:02:54]}  Nd4 {[%clk 0:02:47]} 10. Nge2 {[%clk 0:02:55]}  Nxe2 {[%clk 0:02:46]} 11. Bxe2 {[%clk 0:02:44]}  O-O {[%clk 0:02:45]} 12. c5 {[%clk 0:02:42]}  Nh5 {[%clk 0:02:39]} 13. O-O {[%clk 0:02:40]}  f5 {[%clk 0:02:36]} 14. exf5 {[%clk 0:02:40]}  gxf5 {[%clk 0:02:36]} 15. Bg5 {[%clk 0:02:25]}  Qe8 {[%clk 0:02:31]} 16. cxd6 {[%clk 0:02:14]}  cxd6 {[%clk 0:02:31]} 17. f4 {[%clk 0:01:43]}  Nxf4 {[%clk 0:02:30]} 18. Bxf4 {[%clk 0:01:43]}  exf4 {[%clk 0:02:30]} 19. Qxf4 {[%clk 0:01:43]}  Be5 {[%clk 0:02:29]} 20. Qg5+ {[%clk 0:00:58]}  Qg6 {[%clk 0:02:27]} 21. Bd3 {[%clk 0:00:59]}  Qxg5 {[%clk 0:02:25]} 0-1


[Site "https://www.chess.com"]

[Event "Titled Tuesday Blitz April 26 Late 2022"]
[White "Pinheiro, Iung Alicio de O."]
[Black "Mayaud, Raphael"]
[WhiteFideId "2104350"]
[BlackFideId "627151"]
[WhiteElo "2474"]
[BlackElo "2191"]
[Result "0-1"]
[Round "09"]
[TimeControl "180+1"]
[Date "2022.04.26"]
[WhiteClock "0:00:03"]
[BlackClock "0:00:09"]

1. c4 {[%clk 0:02:58]}  c6 {[%clk 0:02:59]} 2. Qa4 {[%clk 0:02:57]}  Nf6 {[%clk 0:02:47]} 3. g3 {[%clk 0:02:56]}  g6 {[%clk 0:02:36]} 4. Bg2 {[%clk 0:02:54]}  Bg7 {[%clk 0:02:36]} 5. Nf3 {[%clk 0:02:54]}  d5 {[%clk 0:02:34]} 6. cxd5 {[%clk 0:02:54]}  Nxd5 {[%clk 0:02:27]} 7. O-O {[%clk 0:02:52]}  O-O {[%clk 0:02:27]} 8. d3 {[%clk 0:02:40]}  e5 {[%clk 0:02:24]} 9. Bg5 {[%clk 0:02:15]}  f6 {[%clk 0:02:23]} 10. Bd2 {[%clk 0:02:12]}  Be6 {[%clk 0:02:20]} 11. Nc3 {[%clk 0:02:10]}  Nd7 {[%clk 0:02:16]} 12. Rfc1 {[%clk 0:02:02]}  Bf7 {[%clk 0:02:09]} 13. Rab1 {[%clk 0:02:00]}  N7b6 {[%clk 0:02:07]} 14. Qc2 {[%clk 0:01:57]}  Nb4 {[%clk 0:02:01]} 15. Qd1 {[%clk 0:01:39]}  Nxa2 {[%clk 0:02:01]} 16. Nxa2 {[%clk 0:01:26]}  Bxa2 {[%clk 0:02:02]} 17. Ra1 {[%clk 0:01:24]}  Bd5 {[%clk 0:02:00]} 18. Ra5 {[%clk 0:01:10]}  Re8 {[%clk 0:01:46]} 19. e4 {[%clk 0:01:08]}  Bf7 {[%clk 0:01:43]} 20. Bc3 {[%clk 0:00:58]}  Nd7 {[%clk 0:01:31]} 21. Rca1 {[%clk 0:00:53]}  a6 {[%clk 0:01:31]} 22. d4 {[%clk 0:00:52]}  exd4 {[%clk 0:01:29]} 23. Nxd4 {[%clk 0:00:48]}  Ne5 {[%clk 0:01:21]} 24. f4 {[%clk 0:00:37]}  Nc4 {[%clk 0:01:20]} 25. R5a4 {[%clk 0:00:32]}  Ne3 {[%clk 0:01:07]} 26. Qf3 {[%clk 0:00:31]}  Nxg2 {[%clk 0:01:07]} 27. Qxg2 {[%clk 0:00:32]}  Qb6 {[%clk 0:00:55]} 28. Kh1 {[%clk 0:00:30]}  c5 {[%clk 0:00:46]} 29. Nc2 {[%clk 0:00:17]}  Qc6 {[%clk 0:00:46]} 30. Ne3 {[%clk 0:00:16]}  b5 {[%clk 0:00:46]} 31. Ra5 {[%clk 0:00:16]}  b4 {[%clk 0:00:43]} 32. Be1 {[%clk 0:00:16]}  Qxe4 {[%clk 0:00:37]} 33. Rxa6 {[%clk 0:00:12]}  Rxa6 {[%clk 0:00:33]} 34. Qxe4 {[%clk 0:00:11]}  Rxe4 {[%clk 0:00:33]} 35. Rxa6 {[%clk 0:00:11]}  Rxe3 {[%clk 0:00:33]} 36. Ra8+ {[%clk 0:00:11]}  Bf8 {[%clk 0:00:33]} 37. Bf2 {[%clk 0:00:10]}  Re8 {[%clk 0:00:29]} 38. Ra7 {[%clk 0:00:08]}  Rc8 {[%clk 0:00:29]} 39. Kg1 {[%clk 0:00:08]}  c4 {[%clk 0:00:30]} 40. Bd4 {[%clk 0:00:08]}  c3 {[%clk 0:00:27]} 41. bxc3 {[%clk 0:00:09]}  bxc3 {[%clk 0:00:27]} 42. Ra1 {[%clk 0:00:10]}  c2 {[%clk 0:00:26]} 43. Bb2 {[%clk 0:00:08]}  Rd8 {[%clk 0:00:22]} 44. Kf2 {[%clk 0:00:05]}  Rd1 {[%clk 0:00:22]} 45. Rc1 {[%clk 0:00:06]}  Rxc1 {[%clk 0:00:22]} 46. Bxc1 {[%clk 0:00:06]}  Bb3 {[%clk 0:00:21]} 47. Ke2 {[%clk 0:00:07]}  Bb4 {[%clk 0:00:20]} 48. Kd3 {[%clk 0:00:08]}  Kf7 {[%clk 0:00:19]} 49. Bb2 {[%clk 0:00:09]}  f5 {[%clk 0:00:19]} 50. Bc1 {[%clk 0:00:09]}  Ke6 {[%clk 0:00:19]} 51. h3 {[%clk 0:00:09]}  Kd5 {[%clk 0:00:19]} 52. Bb2 {[%clk 0:00:09]}  Ba4 {[%clk 0:00:19]} 53. g4 {[%clk 0:00:09]}  fxg4 {[%clk 0:00:18]} 54. hxg4 {[%clk 0:00:09]}  h5 {[%clk 0:00:19]} 55. f5 {[%clk 0:00:08]}  hxg4 {[%clk 0:00:15]} 56. fxg6 {[%clk 0:00:08]}  Be8 {[%clk 0:00:14]} 57. g7 {[%clk 0:00:08]}  Bf7 {[%clk 0:00:14]} 58. Kxc2 {[%clk 0:00:08]}  Ke4 {[%clk 0:00:15]} 59. Bf6 {[%clk 0:00:05]}  Kf3 {[%clk 0:00:12]} 60. Be5 {[%clk 0:00:04]}  Be1 {[%clk 0:00:09]} 61. Kd3 {[%clk 0:00:04]}  Bf2 {[%clk 0:00:09]} 62. Kc3 {[%clk 0:00:03]}  Bg3 {[%clk 0:00:09]} 63. Bd4 {[%clk 0:00:03]}  Bf4 {[%clk 0:00:10]} 64. Bg1 {[%clk 0:00:03]}  g3 {[%clk 0:00:10]} 65. Kd3 {[%clk 0:00:04]}  g2 {[%clk 0:00:10]} 66. Bc5 {[%clk 0:00:04]}  Bg3 {[%clk 0:00:10]} 67. Kd2 {[%clk 0:00:02]}  Bf2 {[%clk 0:00:10]} 68. g8=Q {[%clk 0:00:03]}  Bxg8 {[%clk 0:00:09]} 0-1


[Site "https://www.chess.com"]

[Event "Titled Tuesday Blitz April 26 Late 2022"]
[White "Przybylski, Wojciech"]
[Black "Petrova, Irina"]
[WhiteFideId "1117599"]
[BlackFideId "14124122"]
[WhiteElo "2133"]
[BlackElo "1993"]
[Result "1-0"]
[Round "09"]
[TimeControl "180+1"]
[Date "2022.04.26"]
[WhiteClock "0:00:43"]
[BlackClock "0:00:17"]

1. d4 {[%clk 0:02:59]}  d6 {[%clk 0:02:43]} 2. e4 {[%clk 0:02:57]}  Nf6 {[%clk 0:02:43]} 3. Nc3 {[%clk 0:02:57]}  e5 {[%clk 0:02:43]} 4. Nf3 {[%clk 0:02:55]}  Nbd7 {[%clk 0:02:43]} 5. Bc4 {[%clk 0:02:54]}  Be7 {[%clk 0:02:43]} 6. O-O {[%clk 0:02:53]}  O-O {[%clk 0:02:43]} 7. a4 {[%clk 0:02:52]}  c6 {[%clk 0:02:43]} 8. a5 {[%clk 0:02:52]}  h6 {[%clk 0:02:43]} 9. h3 {[%clk 0:02:51]}  Re8 {[%clk 0:02:43]} 10. Re1 {[%clk 0:02:51]}  Bf8 {[%clk 0:02:43]} 11. d5 {[%clk 0:02:50]}  b5 {[%clk 0:02:42]} 12. axb6 {[%clk 0:02:41]}  Nxb6 {[%clk 0:02:41]} 13. Bb3 {[%clk 0:02:38]}  cxd5 {[%clk 0:02:40]} 14. Nxd5 {[%clk 0:02:36]}  Nfxd5 {[%clk 0:02:38]} 15. exd5 {[%clk 0:02:36]}  f5 {[%clk 0:02:17]} 16. Bd2 {[%clk 0:02:10]}  Bb7 {[%clk 0:02:11]} 17. c4 {[%clk 0:02:09]}  Nd7 {[%clk 0:02:08]} 18. Ba5 {[%clk 0:02:01]}  Qf6 {[%clk 0:02:05]} 19. Ba4 {[%clk 0:01:58]}  Re7 {[%clk 0:02:00]} 20. Bc6 {[%clk 0:01:50]}  Nc5 {[%clk 0:01:54]} 21. b4 {[%clk 0:01:48]}  Ne4 {[%clk 0:01:53]} 22. c5 {[%clk 0:01:35]}  Rc8 {[%clk 0:01:44]} 23. Bxb7 {[%clk 0:01:33]}  Rxb7 {[%clk 0:01:43]} 24. c6 {[%clk 0:01:33]}  Rf7 {[%clk 0:01:37]} 25. b5 {[%clk 0:01:30]}  g5 {[%clk 0:01:30]} 26. Ra3 {[%clk 0:01:23]}  g4 {[%clk 0:01:27]} 27. hxg4 {[%clk 0:01:22]}  fxg4 {[%clk 0:01:28]} 28. Rxe4 {[%clk 0:01:21]}  gxf3 {[%clk 0:01:27]} 29. Rxf3 {[%clk 0:01:19]}  Qg6 {[%clk 0:01:24]} 30. Rg4 {[%clk 0:01:13]}  Qxg4 {[%clk 0:01:20]} 31. Rg3 {[%clk 0:01:13]}  Qxg3 {[%clk 0:01:21]} 32. fxg3 {[%clk 0:01:13]}  Bg7 {[%clk 0:01:15]} 33. Qg4 {[%clk 0:01:12]}  Rff8 {[%clk 0:01:15]} 34. Bb4 {[%clk 0:01:10]}  Rfd8 {[%clk 0:00:54]} 35. Qe6+ {[%clk 0:01:08]}  Kh8 {[%clk 0:00:54]} 36. Bxd6 {[%clk 0:01:06]}  e4 {[%clk 0:00:54]} 37. Be7 {[%clk 0:01:02]}  Bd4+ {[%clk 0:00:50]} 38. Kh2 {[%clk 0:01:00]}  Re8 {[%clk 0:00:43]} 39. Qxh6+ {[%clk 0:00:59]}  Kg8 {[%clk 0:00:41]} 40. Qg6+ {[%clk 0:00:57]}  Bg7 {[%clk 0:00:41]} 41. d6 {[%clk 0:00:56]}  Ra8 {[%clk 0:00:30]} 42. Qxe4 {[%clk 0:00:54]}  Kf7 {[%clk 0:00:25]} 43. Qf5+ {[%clk 0:00:53]}  Kg8 {[%clk 0:00:25]} 44. Qg6 {[%clk 0:00:52]}  a5 {[%clk 0:00:23]} 45. b6 {[%clk 0:00:49]}  a4 {[%clk 0:00:22]} 46. b7 {[%clk 0:00:49]}  Rab8 {[%clk 0:00:17]} 47. c7 {[%clk 0:00:43]} 1-0


[Site "https://www.chess.com"]

[Event "Titled Tuesday Blitz April 26 Late 2022"]
[White "Ricaurte Lopez, Juan Carlos"]
[Black "Dahlgren, James Allen"]
[WhiteFideId "3600327"]
[BlackFideId "22256873"]
[WhiteElo "2209"]
[BlackElo "2084"]
[Result "1-0"]
[Round "09"]
[TimeControl "180+1"]
[Date "2022.04.26"]
[WhiteClock "0:00:57"]
[BlackClock "0:00:23"]

1. e4 {[%clk 0:03:00]}  e6 {[%clk 0:02:59]} 2. d4 {[%clk 0:02:59]}  c5 {[%clk 0:02:58]} 3. d5 {[%clk 0:02:58]}  exd5 {[%clk 0:02:57]} 4. exd5 {[%clk 0:02:57]}  f5 {[%clk 0:02:58]} 5. Nf3 {[%clk 0:02:50]}  Nf6 {[%clk 0:02:56]} 6. Bc4 {[%clk 0:02:39]}  d6 {[%clk 0:02:48]} 7. O-O {[%clk 0:02:36]}  Be7 {[%clk 0:02:39]} 8. Nc3 {[%clk 0:02:33]}  O-O {[%clk 0:02:39]} 9. Ng5 {[%clk 0:02:32]}  a6 {[%clk 0:02:29]} 10. a4 {[%clk 0:02:30]}  h6 {[%clk 0:02:27]} 11. Ne6 {[%clk 0:02:26]}  Bxe6 {[%clk 0:02:27]} 12. dxe6 {[%clk 0:02:27]}  Nc6 {[%clk 0:02:27]} 13. Bf4 {[%clk 0:02:12]}  Ne5 {[%clk 0:02:07]} 14. Bd5 {[%clk 0:01:59]}  Nxd5 {[%clk 0:01:51]} 15. Qxd5 {[%clk 0:01:56]}  Qc7 {[%clk 0:01:33]} 16. Rad1 {[%clk 0:01:48]}  Rad8 {[%clk 0:01:30]} 17. Rfe1 {[%clk 0:01:40]}  g5 {[%clk 0:01:05]} 18. Bxe5 {[%clk 0:01:33]}  dxe5 {[%clk 0:01:06]} 19. Qxe5 {[%clk 0:01:30]}  Qxe5 {[%clk 0:00:50]} 20. Rxe5 {[%clk 0:01:27]}  Bf6 {[%clk 0:00:33]} 21. Rxf5 {[%clk 0:01:01]}  Bxc3 {[%clk 0:00:27]} 22. Rxf8+ {[%clk 0:00:59]}  Kxf8 {[%clk 0:00:23]} 23. Rxd8+ {[%clk 0:00:57]} 1-0


[Site "https://www.chess.com"]

[Event "Titled Tuesday Blitz April 26 Late 2022"]
[White "Rosenberg, Evan S"]
[Black "Kukula, Pawel"]
[WhiteFideId "2019299"]
[BlackFideId "1115081"]
[WhiteElo "2357"]
[BlackElo "2152"]
[Result "1-0"]
[Round "09"]
[TimeControl "180+1"]
[Date "2022.04.26"]
[WhiteClock "0:00:20"]
[BlackClock "0:00:23"]

1. Nf3 {[%clk 0:02:59]}  d5 {[%clk 0:02:59]} 2. c4 {[%clk 0:02:55]}  d4 {[%clk 0:02:56]} 3. e3 {[%clk 0:02:53]}  c5 {[%clk 0:02:54]} 4. exd4 {[%clk 0:02:52]}  cxd4 {[%clk 0:02:55]} 5. d3 {[%clk 0:02:52]}  Nc6 {[%clk 0:02:55]} 6. Be2 {[%clk 0:02:51]}  Nf6 {[%clk 0:02:54]} 7. O-O {[%clk 0:02:52]}  g6 {[%clk 0:02:55]} 8. b4 {[%clk 0:02:49]}  Bg7 {[%clk 0:02:36]} 9. b5 {[%clk 0:02:46]}  Nb8 {[%clk 0:02:32]} 10. Bb2 {[%clk 0:02:41]}  Nh5 {[%clk 0:02:24]} 11. Re1 {[%clk 0:02:28]}  O-O {[%clk 0:02:22]} 12. Nbd2 {[%clk 0:02:28]}  e5 {[%clk 0:02:17]} 13. h3 {[%clk 0:02:07]}  Nf4 {[%clk 0:02:15]} 14. Bf1 {[%clk 0:02:07]}  Nd7 {[%clk 0:02:14]} 15. g3 {[%clk 0:01:57]}  Nh5 {[%clk 0:02:07]} 16. Bg2 {[%clk 0:01:47]}  Qc7 {[%clk 0:01:57]} 17. Ba3 {[%clk 0:01:39]}  Re8 {[%clk 0:01:56]} 18. Rc1 {[%clk 0:01:40]}  Nc5 {[%clk 0:01:56]} 19. Nb3 {[%clk 0:01:39]}  Nxb3 {[%clk 0:01:29]} 20. axb3 {[%clk 0:01:27]}  f5 {[%clk 0:01:29]} 21. Nxd4 {[%clk 0:01:22]}  Bd7 {[%clk 0:01:25]} 22. Nf3 {[%clk 0:01:19]}  Rad8 {[%clk 0:01:25]} 23. Bb2 {[%clk 0:01:06]}  e4 {[%clk 0:01:08]} 24. Nd4 {[%clk 0:00:50]}  Bc8 {[%clk 0:01:04]} 25. dxe4 {[%clk 0:00:50]}  fxe4 {[%clk 0:00:58]} 26. Rxe4 {[%clk 0:00:47]}  Rxe4 {[%clk 0:00:55]} 27. Bxe4 {[%clk 0:00:47]}  Bxh3 {[%clk 0:00:53]} 28. Bd5+ {[%clk 0:00:47]}  Kh8 {[%clk 0:00:51]} 29. Qf3 {[%clk 0:00:41]}  Rf8 {[%clk 0:00:48]} 30. Qxf8+ {[%clk 0:00:37]}  Bxf8 {[%clk 0:00:43]} 31. Ne6+ {[%clk 0:00:38]}  Bg7 {[%clk 0:00:42]} 32. Bxg7+ {[%clk 0:00:33]}  Qxg7 {[%clk 0:00:42]} 33. Nxg7 {[%clk 0:00:34]}  Kxg7 {[%clk 0:00:43]} 34. Bxb7 {[%clk 0:00:32]}  Nf6 {[%clk 0:00:41]} 35. c5 {[%clk 0:00:32]}  Bg4 {[%clk 0:00:39]} 36. Bg2 {[%clk 0:00:28]}  Bc8 {[%clk 0:00:35]} 37. c6 {[%clk 0:00:27]}  Kf7 {[%clk 0:00:35]} 38. Ra1 {[%clk 0:00:24]}  Ke6 {[%clk 0:00:33]} 39. Rxa7 {[%clk 0:00:25]}  Kd6 {[%clk 0:00:33]} 40. b6 {[%clk 0:00:22]}  Be6 {[%clk 0:00:25]} 41. b7 {[%clk 0:00:20]}  Kc7 {[%clk 0:00:23]} 42. Ra8 {[%clk 0:00:20]} 1-0


[Site "https://www.chess.com"]

[Event "Titled Tuesday Blitz April 26 Late 2022"]
[White "Sailer, Mike"]
[Black "Stevens, Christian"]
[WhiteFideId "2012901"]
[BlackFideId "2604450"]
[WhiteElo "2109"]
[BlackElo "2550"]
[Result "0-1"]
[Round "09"]
[TimeControl "180+1"]
[Date "2022.04.26"]
[WhiteClock "0:00:03"]
[BlackClock "0:00:28"]

1. Nf3 {[%clk 0:02:44]}  d5 {[%clk 0:02:59]} 2. d4 {[%clk 0:02:43]}  Nf6 {[%clk 0:02:59]} 3. Bf4 {[%clk 0:02:42]}  g6 {[%clk 0:02:57]} 4. e3 {[%clk 0:02:43]}  Bg7 {[%clk 0:02:57]} 5. Be2 {[%clk 0:02:42]}  O-O {[%clk 0:02:58]} 6. O-O {[%clk 0:02:43]}  c5 {[%clk 0:02:58]} 7. h3 {[%clk 0:02:41]}  Nc6 {[%clk 0:02:58]} 8. c3 {[%clk 0:02:39]}  Qb6 {[%clk 0:02:57]} 9. Qb3 {[%clk 0:02:39]}  Bf5 {[%clk 0:02:57]} 10. Nbd2 {[%clk 0:02:37]}  c4 {[%clk 0:02:54]} 11. Qxb6 {[%clk 0:02:37]}  axb6 {[%clk 0:02:55]} 12. a3 {[%clk 0:02:38]}  b5 {[%clk 0:02:55]} 13. Ne5 {[%clk 0:02:36]}  Rfc8 {[%clk 0:02:42]} 14. g4 {[%clk 0:02:32]}  Be6 {[%clk 0:02:39]} 15. Nxc6 {[%clk 0:02:28]}  bxc6 {[%clk 0:02:36]} 16. Be5 {[%clk 0:02:28]}  Nd7 {[%clk 0:02:25]} 17. Bxg7 {[%clk 0:02:27]}  Kxg7 {[%clk 0:02:26]} 18. e4 {[%clk 0:02:27]}  dxe4 {[%clk 0:02:21]} 19. Nxe4 {[%clk 0:02:26]}  Bd5 {[%clk 0:02:21]} 20. Bf3 {[%clk 0:02:12]}  e5 {[%clk 0:02:09]} 21. Rad1 {[%clk 0:01:56]}  exd4 {[%clk 0:02:09]} 22. Rxd4 {[%clk 0:01:54]}  Ne5 {[%clk 0:02:06]} 23. Bg2 {[%clk 0:01:50]}  Nd3 {[%clk 0:02:06]} 24. Rb1 {[%clk 0:01:39]}  Rd8 {[%clk 0:01:54]} 25. Nd2 {[%clk 0:01:20]}  Bxg2 {[%clk 0:01:47]} 26. Rxd8 {[%clk 0:01:17]}  Rxd8 {[%clk 0:01:46]} 27. Kxg2 {[%clk 0:01:17]}  Nf4+ {[%clk 0:01:27]} 28. Kf3 {[%clk 0:01:06]}  Nxh3 {[%clk 0:01:14]} 29. Ne4 {[%clk 0:00:59]}  Rd3+ {[%clk 0:01:12]} 30. Ke2 {[%clk 0:00:47]}  Nf4+ {[%clk 0:01:12]} 31. Ke1 {[%clk 0:00:47]}  f5 {[%clk 0:01:06]} 32. gxf5 {[%clk 0:00:46]}  gxf5 {[%clk 0:01:05]} 33. Ng3 {[%clk 0:00:41]}  Kf6 {[%clk 0:00:46]} 34. a4 {[%clk 0:00:26]}  h5 {[%clk 0:00:38]} 35. axb5 {[%clk 0:00:27]}  cxb5 {[%clk 0:00:38]} 36. Ra1 {[%clk 0:00:27]}  h4 {[%clk 0:00:35]} 37. Ra6+ {[%clk 0:00:23]}  Kg5 {[%clk 0:00:34]} 38. Nf1 {[%clk 0:00:19]}  Rf3 {[%clk 0:00:28]} 39. Ra8 {[%clk 0:00:10]}  Nd3+ {[%clk 0:00:28]} 40. Ke2 {[%clk 0:00:04]}  Rxf2+ {[%clk 0:00:27]} 41. Ke3 {[%clk 0:00:03]}  Rxf1 {[%clk 0:00:28]} 0-1


[Site "https://www.chess.com"]

[Event "Titled Tuesday Blitz April 26 Late 2022"]
[White "Sanchez Alvares, Kelvin Antonio"]
[Black "Romanchuk, Viktor"]
[WhiteFideId "3906680"]
[BlackFideId "14109271"]
[WhiteElo "2193"]
[BlackElo "2242"]
[Result "1/2-1/2"]
[Round "09"]
[TimeControl "180+1"]
[Date "2022.04.26"]
[WhiteClock "0:02:20"]
[BlackClock "0:02:32"]

1. e4 {[%clk 0:03:00]}  e6 {[%clk 0:02:58]} 2. d4 {[%clk 0:02:59]}  d5 {[%clk 0:02:58]} 3. Nd2 {[%clk 0:02:58]}  dxe4 {[%clk 0:02:58]} 4. Nxe4 {[%clk 0:02:58]}  Nd7 {[%clk 0:02:58]} 5. Nf3 {[%clk 0:02:58]}  Ngf6 {[%clk 0:02:58]} 6. Bg5 {[%clk 0:02:58]}  h6 {[%clk 0:02:58]} 7. Bxf6 {[%clk 0:02:58]}  Nxf6 {[%clk 0:02:59]} 8. Bd3 {[%clk 0:02:58]}  Nxe4 {[%clk 0:02:59]} 9. Bxe4 {[%clk 0:02:57]}  c5 {[%clk 0:02:59]} 10. c3 {[%clk 0:02:55]}  cxd4 {[%clk 0:02:59]} 11. Qxd4 {[%clk 0:02:56]}  Qxd4 {[%clk 0:02:58]} 12. Nxd4 {[%clk 0:02:57]}  Bc5 {[%clk 0:02:58]} 13. O-O-O {[%clk 0:02:52]}  Ke7 {[%clk 0:02:58]} 14. a4 {[%clk 0:02:47]}  Rd8 {[%clk 0:02:54]} 15. f4 {[%clk 0:02:25]}  Bxd4 {[%clk 0:02:36]} 16. Rxd4 {[%clk 0:02:23]}  Rxd4 {[%clk 0:02:35]} 17. cxd4 {[%clk 0:02:24]}  Bd7 {[%clk 0:02:35]} 18. b3 {[%clk 0:02:24]}  Rc8+ {[%clk 0:02:32]} 19. Kb2 {[%clk 0:02:22]}  b6 {[%clk 0:02:32]} 20. d5 {[%clk 0:02:20]} 1/2-1/2


[Site "https://www.chess.com"]

[Event "Titled Tuesday Blitz April 26 Late 2022"]
[White "Sevian, Samuel"]
[Black "Tari, Aryan"]
[WhiteFideId "2040506"]
[BlackFideId "1510045"]
[WhiteElo "2698"]
[BlackElo "2567"]
[Result "1-0"]
[Round "09"]
[TimeControl "180+1"]
[Date "2022.04.26"]
[WhiteClock "0:00:16"]
[BlackClock "0:00:02"]

1. b3 {[%clk 0:03:00]}  e5 {[%clk 0:02:56]} 2. Bb2 {[%clk 0:03:01]}  Nc6 {[%clk 0:02:57]} 3. Nf3 {[%clk 0:03:01]}  e4 {[%clk 0:02:54]} 4. Nd4 {[%clk 0:03:02]}  Nf6 {[%clk 0:02:54]} 5. e3 {[%clk 0:03:01]}  Nxd4 {[%clk 0:02:47]} 6. Bxd4 {[%clk 0:03:02]}  d5 {[%clk 0:02:44]} 7. c4 {[%clk 0:02:59]}  Bg4 {[%clk 0:02:09]} 8. Qc1 {[%clk 0:02:38]}  Be7 {[%clk 0:01:55]} 9. cxd5 {[%clk 0:02:30]}  O-O {[%clk 0:01:56]} 10. Nc3 {[%clk 0:02:27]}  Nxd5 {[%clk 0:01:56]} 11. Nxe4 {[%clk 0:02:08]}  f5 {[%clk 0:01:48]} 12. Nc3 {[%clk 0:02:06]}  Nb4 {[%clk 0:01:37]} 13. Bc4+ {[%clk 0:01:18]}  Kh8 {[%clk 0:01:37]} 14. O-O {[%clk 0:01:19]}  Nc6 {[%clk 0:01:37]} 15. f3 {[%clk 0:01:09]}  Bh5 {[%clk 0:01:34]} 16. Ne2 {[%clk 0:01:09]}  Nxd4 {[%clk 0:01:11]} 17. Nxd4 {[%clk 0:01:09]}  Qd6 {[%clk 0:01:11]} 18. Nb5 {[%clk 0:00:44]}  Qb6 {[%clk 0:01:09]} 19. Nc3 {[%clk 0:00:44]}  c6 {[%clk 0:01:09]} 20. f4 {[%clk 0:00:44]}  Bf6 {[%clk 0:01:06]} 21. d4 {[%clk 0:00:44]}  Rae8 {[%clk 0:01:05]} 22. Kh1 {[%clk 0:00:43]}  Re7 {[%clk 0:00:59]} 23. Qd2 {[%clk 0:00:43]}  Rfe8 {[%clk 0:00:47]} 24. Rae1 {[%clk 0:00:43]}  Qa5 {[%clk 0:00:48]} 25. Bd3 {[%clk 0:00:42]}  Bg6 {[%clk 0:00:48]} 26. Re2 {[%clk 0:00:39]}  Bh5 {[%clk 0:00:33]} 27. Ree1 {[%clk 0:00:39]}  c5 {[%clk 0:00:27]} 28. b4 {[%clk 0:00:29]}  cxb4 {[%clk 0:00:25]} 29. Nb5 {[%clk 0:00:27]}  Qb6 {[%clk 0:00:21]} 30. Qxb4 {[%clk 0:00:24]}  Qd8 {[%clk 0:00:08]} 31. Nd6 {[%clk 0:00:23]}  a5 {[%clk 0:00:07]} 32. Qa3 {[%clk 0:00:22]}  Rf8 {[%clk 0:00:04]} 33. Nxf5 {[%clk 0:00:22]}  Rc7 {[%clk 0:00:03]} 34. Qxa5 {[%clk 0:00:18]}  Bg6 {[%clk 0:00:03]} 35. Bb1 {[%clk 0:00:17]}  Qb8 {[%clk 0:00:02]} 36. Ng3 {[%clk 0:00:17]}  b6 {[%clk 0:00:02]} 37. Qb5 {[%clk 0:00:16]}  Be8 {[%clk 0:00:02]} 38. Qf5 {[%clk 0:00:16]}  Be7 {[%clk 0:00:02]} 39. Qxh7# {[%clk 0:00:16]} 1-0


[Site "https://www.chess.com"]